bitfinex/quotes_BTCUSD_20260126
["timestamp","ask_amount","ask_price","bid_price","bid_amount"]
[1769460325444,0.10205305,87912.0,87890.0,0.38201912]
[1769460325445,0.09067804,87913.0,87899.0,0.01]
[1769460325647,0.1133597,87912.0,87900.0,0.95102169]
[1769460325810,0.04556,87914.0,87900.0,0.95102169]
[1769460325811,0.1133597,87911.0,87901.0,0.02362683]
[1769460325991,0.03,87909.0,87901.0,0.02362683]
[1769460326194,0.03,87907.0,87901.0,0.02362683]
[1769460326601,0.06824951,87913.0,87901.0,0.02362683]
[1769460326602,0.03,87905.0,87901.0,0.02362683]
[1769460327619,0.06824948,87913.0,87901.0,0.02362683]
[1769460327620,0.03,87911.0,87901.0,0.02362683]
[1769460327835,0.03,87909.0,87901.0,0.02362683]
[1769460328032,0.03,87907.0,87901.0,0.02362683]
[1769460328264,0.03,87905.0,87901.0,0.02362683]
[1769460328466,0.03,87905.0,87890.0,0.38201912]
[1769460328467,0.03,87905.0,87895.0,0.02362683]
[1769460328682,0.03,87905.0,87896.0,0.02362683]
[1769460329553,0.03,87904.0,87896.0,0.02362683]
[1769460329994,0.03,87904.0,87897.0,0.02362683]
[1769460330384,0.03,87910.0,87897.0,0.02362683]
[1769460330611,0.03,87908.0,87897.0,0.02362683]
[1769460330868,0.03,87906.0,87897.0,0.02362683]
[1769460331819,0.03,87912.0,87897.0,0.02362683]
[1769460332018,0.03,87910.0,87897.0,0.02362683]
[1769460332221,0.03,87908.0,87897.0,0.02362683]
[1769460332401,0.03,87906.0,87897.0,0.02362683]
[1769460333483,0.03,87904.0,87897.0,0.02362683]
[1769460334512,0.03,87903.0,87897.0,0.02362683]
[1769460335483,0.03,87902.0,87897.0,0.56900257]
[1769460335694,0.10205266,87915.0,87890.0,0.38201912]
[1769460335695,0.09067804,87915.0,87898.0,0.05690026]
[1769460335893,0.11350995,87914.0,87903.0,0.02287618]
[1769460336111,0.11350995,87913.0,87903.0,0.02287618]
[1769460336314,0.11350995,87912.0,87903.0,0.02287618]
[1769460336556,0.03,87910.0,87903.0,0.02287618]
[1769460336779,0.03,87908.0,87903.0,0.02287618]
[1769460337499,0.03,87908.0,87900.0,0.38201912]
[1769460337674,0.03,87908.0,87897.0,0.56900257]
[1769460337835,0.03,87907.0,87897.0,0.56900257]
[1769460338739,0.03,87911.0,87897.0,0.56900257]
[1769460338942,0.03,87909.0,87897.0,0.56900257]
[1769460339337,0.03,87909.0,87895.0,0.02287618]
[1769460339338,0.04137539,87909.0,87895.0,0.02287618]
[1769460339862,0.03,87909.0,87895.0,0.02287618]
[1769460340108,0.04137539,87909.0,87895.0,0.02287618]
[1769460340399,0.03,87909.0,87895.0,0.02287618]
[1769460340806,0.04137539,87909.0,87895.0,0.02287618]
[1769460341226,0.03,87909.0,87895.0,0.02287618]
[1769460341733,0.04137539,87909.0,87895.0,0.02287618]
[1769460341878,0.03,87909.0,87895.0,0.02287618]
[1769460342083,0.03,87908.0,87895.0,0.02287618]
[1769460343212,0.03,87907.0,87895.0,0.02287618]
[1769460343574,0.03,87907.0,87896.0,0.56900257]
[1769460344318,0.03,87906.0,87896.0,0.56900257]
[1769460344543,0.03,87906.0,87896.0,0.95102169]
[1769460345147,0.03,87906.0,87896.0,0.38201912]
[1769460345363,0.03,87918.0,87906.0,0.01]
[1769460345580,0.01137177,87937.0,87911.0,0.02287618]
[1769460345793,0.58145444,87933.0,87916.0,0.02287618]
[1769460346010,0.01137242,87932.0,87917.0,0.38201912]
[1769460346216,0.61584789,87933.0,87917.0,0.38201912]
[1769460346421,0.0301527,87927.0,87915.0,0.56900257]
[1769460346620,0.03,87925.0,87910.0,0.97389787]
[1769460346843,0.03,87925.0,87910.0,0.4048953]
[1769460347111,0.01137345,87924.0,87910.0,0.02287618]
[1769460347282,0.03,87919.0,87900.0,0.38201912]
[1769460347523,0.03,87917.0,87900.0,0.38201912]
[1769460347899,0.03,87917.0,87901.0,0.56900257]
[1769460348100,0.03,87917.0,87903.0,0.56900257]
[1769460348522,0.03,87922.0,87907.0,0.38201912]
[1769460348761,0.03,87922.0,87910.0,0.38201912]
[1769460349151,0.03,87922.0,87911.0,0.5954761]
[1769460349508,0.03,87919.0,87879.0,0.02524458]
[1769460349709,0.03,87899.0,87886.0,0.02435342]
[1769460349910,0.01137449,87916.0,87900.0,0.5954761]
[1769460349911,0.17492,87916.0,87900.0,0.5954761]
[1769460350135,0.22048,87916.0,87901.0,0.57112268]
[1769460350792,0.03,87915.0,87901.0,0.57112268]
[1769460351736,0.03,87917.0,87901.0,0.57112268]
[1769460351964,0.03,87917.0,87902.0,0.09774952]
[1769460352343,0.04137436,87917.0,87902.0,0.09774952]
[1769460352560,0.03,87917.0,87902.0,0.09774952]
[1769460353287,0.03,87917.0,87903.0,0.57112268]
[1769460361812,0.03,87925.0,87908.0,0.5954761]
[1769460362631,0.04137332,87925.0,87908.0,0.5954761]
[1769460362826,0.03,87920.0,87908.0,0.5954761]
[1769460363026,0.03,87920.0,87908.0,0.57112268]
[1769460363251,0.03,87920.0,87903.0,0.57112268]
[1769460363485,0.03,87920.0,87901.0,0.00013994]
[1769460363486,0.03,87920.0,87905.0,0.57112268]
[1769460363615,0.03,87920.0,87906.0,0.5954761]
[1769460364039,0.03,87923.0,87906.0,0.5954761]
[1769460365880,0.04137358,87923.0,87906.0,0.5954761]
[1769460366088,0.06824097,87924.0,87906.0,0.5954761]
[1769460366296,0.01137358,87923.0,87906.0,0.69323962]
[1769460367529,0.06824097,87924.0,87906.0,0.69323962]
[1769460367951,0.01137345,87924.0,87906.0,0.69323962]
[1769460368168,0.01137358,87923.0,87906.0,0.69323962]
[1769460369344,0.03,87924.0,87906.0,0.69323962]
[1769460370398,0.03,87923.0,87906.0,0.69323962]
[1769460370630,0.03,87920.0,87906.0,0.57979697]
[1769460370810,0.03,87914.0,87901.0,0.00013994]
[1769460371782,0.03,87913.0,87901.0,0.00013994]
[1769460372614,0.03,87909.0,87901.0,0.00013994]
[1769460372824,0.03,87903.0,87892.0,0.02524458]
[1769460372982,0.03,87903.0,87863.0,0.01138135]
[1769460372983,0.03,87899.0,87893.0,0.17492]
[1769460373354,0.01769504,87899.0,87893.0,0.17492]
[1769460374246,0.05383055,87898.0,87893.0,0.17492]
[1769460374902,0.05651908,87978.0,87893.0,0.17492]
[1769460375121,0.03,87910.0,87898.0,0.01]
[1769460375328,0.03,87906.0,87898.0,0.01]
[1769460375540,0.05383055,87906.0,87898.0,0.01]
[1769460378936,0.05383055,87906.0,87893.0,0.74604268]
[1769460384542,0.05383055,87906.0,87894.0,0.04556]
[1769460386763,0.03,87902.0,87894.0,0.04556]
[1769460387861,0.03,87905.0,87894.0,0.04556]
[1769460388499,0.03,87903.0,87894.0,0.04556]
[1769460388697,0.03,87903.0,87893.0,0.17492]
[1769460388698,0.01137656,87900.0,87889.0,0.0002079]
[1769460388874,0.66159876,87898.0,87890.0,0.22048]
[1769460389055,0.59333745,87898.0,87890.0,0.22048]
[1769460391497,0.60471427,87898.0,87890.0,0.22048]
[1769460391858,0.03,87896.0,87890.0,0.22048]
[1769460392060,0.04137708,87896.0,87890.0,0.22048]
[1769460392286,0.03,87896.0,87890.0,0.22048]
[1769460392679,0.03,87895.0,87890.0,0.22048]
[1769460393649,0.03,87894.0,87890.0,0.22048]
[1769460393895,0.56333745,87900.0,87894.0,0.01]
[1769460394865,0.06825552,87905.0,87894.0,0.01]
[1769460394866,0.03,87899.0,87894.0,0.01]
[1769460395693,0.03,87898.0,87890.0,0.22048]
[1769460396784,0.03,87904.0,87890.0,0.22048]
[1769460400496,0.03,87904.0,87890.0,0.6023355]
[1769460401080,0.03,87904.0,87891.0,0.04556]
[1769460402160,0.03,87903.0,87891.0,0.04556]
[1769460402377,0.03,87903.0,87892.0,0.02282643]
[1769460403296,0.03,87907.0,87892.0,0.02282643]
[1769460403648,0.59333745,87907.0,87892.0,0.02282643]
[1769460405764,0.03,87905.0,87892.0,0.02282643]
[1769460405967,0.03,87903.0,87892.0,0.02282643]
[1769460406203,0.03,87896.0,87891.0,0.04556]
[1769460407310,0.03,87895.0,87891.0,0.04556]
[1769460407522,0.03,87895.0,87890.0,0.22048]
[1769460408403,0.03,87894.0,87890.0,0.22048]
[1769460409534,0.03,87893.0,87890.0,0.22048]
[1769460410251,0.03,87891.0,87890.0,0.22048]
[1769460410569,0.5880222,87892.0,87876.0,0.04556]
[1769460410570,0.03,87881.0,87876.0,0.04556]
[1769460410794,0.03,87881.0,87877.0,0.17492]
[1769460411001,0.03,87881.0,87877.0,0.17460323]
[1769460411234,0.03,87879.0,87877.0,0.17460323]
[1769460412166,0.03,87884.0,87879.0,0.01]
[1769460413190,0.03,87883.0,87877.0,0.17460323]
[1769460413605,0.05688725,87894.0,87877.0,0.17460323]
[1769460413606,0.5986012,87897.0,87883.0,0.01]
[1769460413832,0.12450126,87896.0,87883.0,0.01]
[1769460414044,0.11312418,87895.0,87883.0,0.00968]
[1769460414251,0.03,87894.0,87883.0,0.00968]
[1769460415251,0.03,87895.0,87883.0,0.00968]
[1769460415693,0.03,87893.0,87883.0,0.00968]
[1769460415893,0.03,87893.0,87882.0,0.02273217]
[1769460416473,0.04137747,87893.0,87882.0,0.02273217]
[1769460417293,0.03,87889.0,87882.0,0.02273217]
[1769460417491,0.03,87889.0,87878.0,0.04556]
[1769460417693,0.03,87887.0,87878.0,0.04556]
[1769460418122,0.04137824,87887.0,87878.0,0.04556]
[1769460418326,0.03,87885.0,87878.0,0.04556]
[1769460418539,0.0413785,87885.0,87878.0,0.04556]
[1769460418743,0.04137876,87883.0,87878.0,0.04556]
[1769460418899,0.03,87883.0,87878.0,0.04556]
[1769460419124,0.03,87883.0,87877.0,0.22016323]
[1769460419306,0.04137876,87883.0,87877.0,0.22016323]
[1769460420130,0.03,87881.0,87877.0,0.22016323]
[1769460421205,0.03,87880.0,87877.0,0.22016323]
[1769460422216,0.03,87879.0,87877.0,0.22016323]
[1769460423214,0.03,87878.0,87877.0,0.22016323]
[1769460424196,0.03,87885.0,87877.0,0.22016323]
[1769460424474,0.03,87879.0,87877.0,0.22016323]
[1769460425006,0.0113785,87885.0,87877.0,0.22016323]
[1769460425413,0.03,87885.0,87877.0,0.22016323]
[1769460425597,0.0413785,87885.0,87877.0,0.22016323]
[1769460425806,0.03,87885.0,87877.0,0.22016323]
[1769460426434,0.03,87884.0,87877.0,0.22016323]
[1769460427345,0.03,87883.0,87877.0,0.22016323]
[1769460427836,0.03,87883.0,87877.0,0.17460323]
[1769460428057,0.03,87883.0,87877.0,0.17428339]
[1769460428625,0.06826843,87889.0,87877.0,0.17428339]
[1769460428626,0.03,87882.0,87877.0,0.17428339]
[1769460429434,0.03,87887.0,87877.0,0.17428339]
[1769460430403,0.03,87887.0,87878.0,0.02273217]
[1769460430632,0.03,87889.0,87878.0,0.02273217]
[1769460431562,0.03,87889.0,87878.0,0.02241236]
[1769460431764,0.03,87888.0,87878.0,0.02241236]
[1769460432730,0.03,87887.0,87878.0,0.02241236]
[1769460433761,0.03,87886.0,87878.0,0.02241236]
[1769460433967,0.03,87886.0,87878.0,0.02209258]
[1769460434829,0.01137721,87895.0,87878.0,0.02209258]
[1769460434830,0.03,87894.0,87878.0,0.02209258]
[1769460435053,0.03,87892.0,87878.0,0.02209258]
[1769460436091,0.03,87894.0,87878.0,0.02209258]
[1769460436292,0.03,87892.0,87878.0,0.02209258]
[1769460436539,0.0115214,87902.0,87882.0,0.57615253]
[1769460436681,0.18141966,87901.0,87885.0,0.57615253]
[1769460436876,0.18141966,87901.0,87886.0,0.02273217]
[1769460436877,0.11316067,87900.0,87886.0,0.02273217]
[1769460437288,0.03,87899.0,87886.0,0.02273217]
[1769460437490,0.03,87897.0,87886.0,0.02273217]
[1769460437698,0.03,87895.0,87886.0,0.02273217]
[1769460438849,0.03,87894.0,87886.0,0.02273217]
[1769460439379,0.03,87894.0,87887.0,0.59181162]
[1769460439580,0.03,87893.0,87888.0,0.02358733]
[1769460439786,0.03,87893.0,87889.0,0.02358733]
[1769460440693,0.03,87892.0,87889.0,0.02358733]
[1769460441571,0.0001451,87902.0,87889.0,0.02358733]
[1769460441772,0.03,87900.0,87889.0,0.02358733]
[1769460441914,0.03,87898.0,87889.0,0.02326755]
[1769460442115,0.03,87896.0,87889.0,0.02326755]
[1769460442315,0.03,87894.0,87889.0,0.02326755]
[1769460443331,0.0001451,87902.0,87889.0,0.02326755]
[1769460443532,0.03,87900.0,87889.0,0.02326755]
[1769460443685,0.03,87898.0,87889.0,0.02326755]
[1769460443887,0.03,87896.0,87889.0,0.02326755]
[1769460444221,0.03,87894.0,87889.0,0.02326755]
[1769460444388,0.0001451,87902.0,87894.0,0.62507894]
[1769460444592,0.0001451,87902.0,87895.0,0.17496]
[1769460446942,0.0001451,87911.0,87895.0,0.17496]
[1769460446943,0.0001451,87911.0,87897.0,0.59181162]
[1769460447205,0.58764896,87920.0,87904.0,0.61539895]
[1769460447206,0.0001758,87912.0,87904.0,0.61539895]
[1769460447418,0.0001758,87912.0,87905.0,0.02358733]
[1769460447620,0.0001758,87912.0,87906.0,0.59181162]
[1769460448461,0.00022885,87912.0,87906.0,0.59181162]
[1769460450509,0.00022885,87912.0,87896.0,0.02358733]
[1769460450717,0.00022885,87912.0,87897.0,0.02358733]
[1769460450903,0.00022885,87912.0,87897.0,0.61539895]
[1769460451868,0.00022885,87912.0,87898.0,0.04556]
[1769460453133,0.03,87905.0,87899.0,0.17496]
[1769460453273,0.03,87905.0,87896.0,0.04556]
[1769460453274,0.03,87905.0,87900.0,0.17496]
[1769460453496,0.03,87903.0,87900.0,0.17496]
[1769460454921,0.39785715,87904.0,87900.0,0.17496]
[1769460455123,0.42241022,87904.0,87900.0,0.17496]
[1769460456480,0.02455307,87904.0,87900.0,0.17496]
[1769460458531,0.03592911,87904.0,87887.0,0.59181162]
[1769460458731,0.05455307,87902.0,87896.0,0.03979219]
[1769460461570,0.06592937,87902.0,87896.0,0.03979219]
[1769460461772,0.05455307,87902.0,87896.0,0.03979219]
[1769460463085,0.06592937,87902.0,87896.0,0.03979219]
[1769460463259,0.12281092,87902.0,87896.0,0.03979219]
[1769460464607,0.05455307,87902.0,87896.0,0.03979219]
[1769460465753,0.0113763,87902.0,87896.0,0.03979219]
[1769460465986,0.03,87901.0,87896.0,0.03979219]
[1769460466354,0.08900608,87901.0,87896.0,0.03979219]
[1769460466695,0.08900608,87901.0,87888.0,0.83591895]
[1769460467527,0.08900608,87901.0,87889.0,0.61539895]
[1769460468734,0.03,87899.0,87889.0,0.61539895]
[1769460469958,0.04137643,87901.0,87889.0,0.61539895]
[1769460470942,0.03,87901.0,87889.0,0.61539895]
[1769460471521,0.03,87901.0,87890.0,0.04556]
[1769460471522,0.04137643,87901.0,87890.0,0.04556]
[1769460472568,0.03,87901.0,87890.0,0.04556]
[1769460472707,0.03,87900.0,87890.0,0.04556]
[1769460473984,0.03,87906.0,87900.0,0.01]
[1769460474191,0.03,87904.0,87892.0,0.60474798]
[1769460475260,0.03,87903.0,87892.0,0.60474798]
[1769460476296,0.03,87907.0,87892.0,0.60474798]
[1769460476492,0.03,87905.0,87892.0,0.58117613]
[1769460476752,0.03,87903.0,87894.0,0.02357185]
[1769460476922,0.03,87903.0,87895.0,0.60474798]
[1769460477639,0.03,87902.0,87895.0,0.60474798]
[1769460478693,0.03,87909.0,87895.0,0.60474798]
[1769460478912,0.03,87907.0,87895.0,0.60474798]
[1769460479108,0.11330832,87908.0,87895.0,0.60474798]
[1769460479109,0.03,87905.0,87895.0,0.60474798]
[1769460479312,0.03,87903.0,87895.0,0.60474798]
[1769460480315,0.03,87902.0,87895.0,0.60474798]
[1769460480540,0.03,87902.0,87895.0,0.02357185]
[1769460480772,0.03,87895.0,87886.0,0.58117613]
[1769460480907,0.03,87890.0,87887.0,0.17492]
[1769460481355,0.02368375,87899.0,87890.0,0.01]
[1769460481555,0.11332898,87898.0,87887.0,0.17492]
[1769460481770,0.02368375,87899.0,87887.0,0.17492]
[1769460481934,0.14332984,87898.0,87887.0,0.17492]
[1769460482132,0.03,87896.0,87887.0,0.17492]
[1769460483124,0.03,87893.0,87887.0,0.17492]
[1769460483502,0.03,87889.0,87888.0,0.17492]
[1769460485352,0.08688934,87890.0,87888.0,0.17492]
[1769460485932,0.08688931,87890.0,87888.0,0.17492]
[1769460486138,0.04137863,87884.0,87878.0,0.0001516]
[1769460486344,0.03,87884.0,87881.0,0.17496]
[1769460487167,0.09067804,87894.0,87881.0,0.17496]
[1769460487168,0.03,87883.0,87881.0,0.17496]
[1769460487374,0.01137785,87890.0,87883.0,0.00968022]
[1769460487571,0.12473337,87889.0,87881.0,0.17496]
[1769460487781,0.11335539,87888.0,87881.0,0.17496]
[1769460488037,0.11335539,87887.0,87881.0,0.17496]
[1769460488244,0.03,87885.0,87881.0,0.17496]
[1769460489324,0.06826846,87889.0,87881.0,0.17496]
[1769460489325,0.14335119,87884.0,87881.0,0.17496]
[1769460489527,0.03,87884.0,87881.0,0.17496]
[1769460490326,0.03,87887.0,87881.0,0.17496]
[1769460490512,0.04137824,87887.0,87881.0,0.17496]
[1769460490718,0.03,87887.0,87881.0,0.17496]
[1769460491334,0.03,87886.0,87881.0,0.17496]
[1769460492334,0.03,87885.0,87881.0,0.17496]
[1769460493338,0.03,87887.0,87881.0,0.17496]
[1769460493768,0.04137824,87887.0,87881.0,0.17472974]
[1769460494012,0.03,87887.0,87881.0,0.17472974]
[1769460494399,0.03,87886.0,87881.0,0.17472974]
[1769460495061,0.49584134,87893.0,87881.0,0.17472974]
[1769460495493,0.05688961,87890.0,87881.0,0.17472974]
[1769460495709,0.03,87889.0,87881.0,0.17472974]
[1769460496049,0.04137798,87889.0,87881.0,0.17472974]
[1769460496249,0.03,87889.0,87881.0,0.17472974]
[1769460496823,0.03,87884.0,87881.0,0.17472974]
[1769460497797,0.05689439,87883.0,87881.0,0.17472974]
[1769460497988,0.03,87878.0,87876.0,0.16356]
[1769460498206,0.03004659,87878.0,87876.0,0.1123161]
[1769460498406,0.03004659,87878.0,87876.0,0.0667722]
[1769460498608,0.03004659,87878.0,87876.0,0.01556035]
[1769460498813,0.03004659,87878.0,87871.0,0.0454922]
[1769460498989,0.07173988,87878.0,87871.0,0.0454922]
[1769460499194,0.03,87877.0,87871.0,0.0454922]
[1769460500257,0.03,87876.0,87871.0,0.0454922]
[1769460501195,4.659e-05,87878.0,87871.0,0.0454922]
[1769460501528,0.04137993,87874.0,87865.0,0.02357185]
[1769460501727,0.03,87866.0,87856.0,0.02313753]
[1769460501990,0.03,87861.0,87856.0,0.02313753]
[1769460502520,0.03,87861.0,87855.0,0.22052]
[1769460503097,0.03,87860.0,87855.0,0.22052]
[1769460503326,0.59635439,87870.0,87855.0,0.22052]
[1769460503463,0.05690495,87866.0,87855.0,0.22052]
[1769460503878,0.01138044,87870.0,87855.0,0.22052]
[1769460504083,0.03,87867.0,87857.0,0.60443213]
[1769460504333,0.01137928,87879.0,87867.0,0.00968022]
[1769460504553,0.01137902,87881.0,87867.0,0.00968022]
[1769460504554,0.01137902,87881.0,87868.0,0.60443213]
[1769460504716,0.06827467,87881.0,87870.0,0.02313753]
[1769460504923,0.01137928,87879.0,87870.0,0.01867786]
[1769460505121,0.03004659,87878.0,87870.0,0.01095559]
[1769460505328,0.03004659,87878.0,87870.0,0.00409006]
[1769460505651,0.03004659,87878.0,87869.0,0.60443213]
[1769460505845,0.03004659,87878.0,87869.0,0.60437154]
[1769460505979,0.03,87877.0,87869.0,0.60437154]
[1769460507065,0.03,87876.0,87869.0,0.60437154]
[1769460508231,4.659e-05,87878.0,87869.0,0.60437154]
[1769460508845,4.659e-05,87878.0,87867.0,0.02313753]
[1769460509622,0.03004659,87878.0,87867.0,0.02313753]
[1769460510157,0.03004659,87878.0,87867.0,0.62756966]
[1769460510779,0.03,87877.0,87867.0,0.62756966]
[1769460510964,0.03,87877.0,87867.0,0.98660054]
[1769460511170,0.01137837,87886.0,87871.0,0.60443213]
[1769460511369,0.01137837,87886.0,87874.0,0.60443213]
[1769460511370,0.11306433,87885.0,87874.0,0.60443213]
[1769460511569,0.11306433,87884.0,87875.0,0.02313753]
[1769460511777,0.05689187,87888.0,87875.0,0.02313753]
[1769460511778,0.14306433,87883.0,87875.0,0.02313753]
[1769460511971,0.03,87883.0,87875.0,0.02313753]
[1769460512673,0.03,87887.0,87875.0,0.02313753]
[1769460512886,0.05688937,87890.0,87875.0,0.02313753]
[1769460512887,0.0001992,87892.0,87875.0,0.02313753]
[1769460513084,0.0001992,87892.0,87880.0,0.02313753]
[1769460513323,0.0001992,87892.0,87882.0,0.02313753]
[1769460514905,0.0001992,87892.0,87881.0,0.60443213]
[1769460514906,0.0301992,87892.0,87881.0,0.60443213]
[1769460515786,0.03,87891.0,87881.0,0.60443213]
[1769460516875,0.0001992,87892.0,87881.0,0.60443213]
[1769460517751,0.03,87888.0,87871.0,0.17507433]
[1769460518536,0.03,87888.0,87871.0,0.77950646]
[1769460518733,0.05400597,87890.0,87871.0,0.77950646]
[1769460520515,0.06538382,87890.0,87871.0,0.77950646]
[1769460520724,0.05400597,87890.0,87871.0,0.77950646]
[1769460520916,0.03,87888.0,87871.0,0.77950646]
[1769460521326,0.03,87888.0,87871.0,0.17507433]
[1769460521596,0.03,87888.0,87872.0,0.60443213]
[1769460521967,0.04137811,87888.0,87872.0,0.60443213]
[1769460522187,0.05400597,87886.0,87873.0,0.175]
[1769460522594,0.06538434,87886.0,87873.0,0.175]
[1769460522825,0.05400597,87886.0,87873.0,0.175]
[1769460529230,0.05400597,87886.0,87873.0,0.7649805]
[1769460530593,0.05400597,87886.0,87873.0,0.5899805]
[1769460531201,0.16560875,87886.0,87873.0,0.5899805]
[1769460531410,0.05400597,87886.0,87873.0,0.5899805]
[1769460536480,0.05400597,87886.0,87871.0,7.433e-05]
[1769460536711,0.61887195,87872.0,87860.0,0.02524458]
[1769460536918,0.68775649,87872.0,87860.0,4.659e-05]
[1769460537349,0.01138109,87865.0,87860.0,4.659e-05]
[1769460537559,0.03,87863.0,87860.0,4.659e-05]
[1769460537987,0.05321222,87863.0,87860.0,4.659e-05]
[1769460538625,0.1289692,87863.0,87860.0,4.659e-05]
[1769460539303,0.03,87861.0,87860.0,4.659e-05]
[1769460539519,0.05321222,87861.0,87860.0,4.659e-05]
[1769460539862,0.03,87861.0,87860.0,4.659e-05]
[1769460540516,0.01138122,87864.0,87859.0,1e-08]
[1769460540517,0.67578066,87860.0,87859.0,1e-08]
[1769460540680,0.03,87852.0,87840.0,0.0001578]
[1769460540905,0.05691243,87855.0,87849.0,0.00062407]
[1769460540906,0.05321222,87850.0,87849.0,0.00062407]
[1769460541307,0.05691111,87858.0,87849.0,0.00062407]
[1769460541308,0.02321222,87861.0,87850.0,0.01]
[1769460541508,0.01138174,87860.0,87850.0,0.01]
[1769460541711,0.03303874,87860.0,87850.0,0.01]
[1769460541913,0.03,87859.0,87850.0,0.01]
[1769460542533,0.06459409,87859.0,87849.0,0.00062407]
[1769460542741,0.05321222,87859.0,87849.0,0.00062407]
[1769460542942,0.06459409,87859.0,87849.0,0.00062407]
[1769460543153,0.01138239,87855.0,87849.0,0.00062407]
[1769460543350,0.08492024,87854.0,87849.0,0.00062407]
[1769460543575,0.03,87850.0,87835.0,0.76453916]
[1769460543782,0.04138329,87848.0,87835.0,0.76461342]
[1769460543989,0.0682983,87850.0,87835.0,0.76461342]
[1769460543990,0.03,87841.0,87835.0,0.59005476]
[1769460544138,0.03,87841.0,87835.0,7.426e-05]
[1769460544796,0.03,87837.0,87835.0,7.426e-05]
[1769460545009,0.03,87837.0,87829.0,0.0030926]
[1769460545010,0.03,87833.0,87829.0,0.0030926]
[1769460545220,0.09831382,87830.0,87829.0,0.00014011]
[1769460546059,0.03,87830.0,87829.0,0.00014011]
[1769460546751,0.01138498,87835.0,87830.0,0.00837989]
[1769460546979,0.01138537,87832.0,87830.0,0.00864359]
[1769460547206,0.03,87846.0,87830.0,0.0002637]
[1769460547350,0.01138485,87836.0,87831.0,0.5899805]
[1769460547533,0.01138459,87838.0,87831.0,0.61321178]
[1769460547736,0.01138472,87837.0,87831.0,0.61321178]
[1769460547931,0.01138472,87837.0,87831.0,0.61347548]
[1769460548130,0.01138459,87838.0,87831.0,0.61347548]
[1769460548335,0.01138472,87837.0,87831.0,0.5902442]
[1769460548623,0.03,87836.0,87831.0,0.5902442]
[1769460549627,0.03,87835.0,87831.0,0.5902442]
[1769460550619,0.03,87836.0,87831.0,0.5902442]
[1769460551486,0.03,87835.0,87831.0,0.5902442]
[1769460552514,0.06830525,87841.0,87824.0,0.0456]
[1769460552515,0.03,87829.0,87824.0,0.0456]
[1769460552728,0.03,87829.0,87825.0,0.17504]
[1769460553165,0.03,87827.0,87825.0,0.17504]
[1769460554213,0.03,87826.0,87824.0,0.0456]
[1769460554431,0.03,87826.0,87825.0,0.17504]
[1769460555354,0.03,87827.0,87825.0,0.17504]
[1769460555727,0.08693045,87827.0,87825.0,0.17504]
[1769460555948,0.65421123,87825.0,87824.0,0.03990801]
[1769460556171,0.53920541,87825.0,87820.0,0.0457833]
[1769460556375,0.03,87822.0,87820.0,0.0001833]
[1769460557891,0.03,87821.0,87820.0,0.0001833]
[1769460559855,0.03,87823.0,87820.0,0.0001833]
[1769460560052,0.14887106,87823.0,87820.0,0.0001833]
[1769460560753,0.13748453,87823.0,87820.0,0.0001833]
[1769460560915,0.14887106,87823.0,87820.0,0.0001833]
[1769460561112,0.03,87821.0,87820.0,0.0001833]
[1769460561604,0.03,87821.0,87807.0,0.5901805]
[1769460561605,0.08693852,87814.0,87807.0,0.0002]
[1769460561805,0.03,87811.0,87807.0,0.0002]
[1769460563096,0.03,87810.0,87807.0,0.0002]
[1769460563318,0.03,87810.0,87809.0,0.63558607]
[1769460563546,0.01138783,87813.0,87810.0,0.01]
[1769460563795,0.01138783,87813.0,87809.0,0.63558607]
[1769460564213,0.03,87813.0,87809.0,0.63558607]
[1769460564859,0.03,87811.0,87809.0,0.0001833]
[1769460565264,0.10474463,87811.0,87809.0,0.0001833]
[1769460565469,0.04780387,87811.0,87809.0,0.0001833]
[1769460565675,0.03,87811.0,87809.0,0.0001833]
[1769460565878,0.03,87810.0,87809.0,0.0001833]
[1769460566920,0.08694112,87810.0,87809.0,0.0001833]
[1769460567137,0.03,87810.0,87809.0,0.0001833]
[1769460567596,0.08694112,87810.0,87809.0,0.0001833]
[1769460567781,0.03,87810.0,87809.0,0.0001833]
[1769460569154,0.08694112,87810.0,87809.0,0.0001833]
[1769460569373,0.09449402,87810.0,87809.0,0.0001833]
[1769460569813,0.09449402,87810.0,87799.0,0.02552481]
[1769460569814,0.03,87800.0,87798.0,0.0001833]
[1769460570052,0.03,87800.0,87768.0,0.0456]
[1769460570053,0.01139017,87795.0,87782.0,0.02452481]
[1769460570275,0.03,87792.0,87784.0,0.02452481]
[1769460570496,0.01138926,87802.0,87795.0,0.01]
[1769460570717,0.00013988,87802.0,87795.0,0.01]
[1769460570931,0.01152914,87802.0,87795.0,0.01]
[1769460571139,0.03,87799.0,87795.0,0.01]
[1769460571374,0.03,87799.0,87792.0,0.61087796]
[1769460571586,0.03,87799.0,87791.0,0.02452481]
[1769460572214,0.03,87798.0,87791.0,0.02452481]
[1769460573128,0.03,87801.0,87791.0,0.02452481]
[1769460573768,0.03,87801.0,87780.0,0.55770577]
[1769460573769,0.64807138,87797.0,87780.0,0.38262577]
[1769460574212,0.64807138,87797.0,87781.0,0.00996406]
[1769460574823,0.03,87798.0,87782.0,0.61087796]
[1769460575026,0.03,87798.0,87784.0,0.61087796]
[1769460575853,0.03,87797.0,87784.0,0.61087796]
[1769460576339,0.03,87797.0,87787.0,0.02452481]
[1769460576565,0.03,87797.0,87789.0,0.02452481]
[1769460576975,0.03,87796.0,87789.0,0.02452481]
[1769460577404,0.03,87794.0,87780.0,0.38262577]
[1769460577809,0.03,87794.0,87781.0,0.61087796]
[1769460578067,0.03,87794.0,87782.0,0.02452481]
[1769460578228,0.03,87794.0,87783.0,0.02452481]
[1769460578411,0.03,87796.0,87783.0,0.02452481]
[1769460578833,0.03,87794.0,87783.0,0.02452481]
[1769460579039,0.03,87794.0,87784.0,0.61087796]
[1769460579276,0.03,87794.0,87786.0,0.61087796]
[1769460579587,0.03,87794.0,87787.0,0.02452481]
[1769460579771,0.06833837,87800.0,87787.0,0.02452481]